bitfinex-derivatives/quotes_SOLF0:USTF0_20260107
["timestamp","ask_amount","ask_price","bid_price","bid_amount"]
[1767811111639,3.84738567,135.68,135.62,10.32102202]
[1767811113639,6.6386,135.69,135.62,10.32102202]
[1767811113836,3.72166243,135.7,135.64,3.67467361]
[1767811114140,9.2096963,135.69,135.62,3.67467361]
[1767811114327,3.72166243,135.69,135.62,3.67467361]
[1767811114736,10.36036243,135.69,135.62,3.67467361]
[1767811115540,10.36036243,135.69,135.59,112.4952336]
[1767811115541,3.72166243,135.67,135.59,3.67467361]
[1767811116538,10.36126243,135.67,135.6,6.6428]
[1767811117537,3.72166243,135.7,135.62,3.67467361]
[1767811118635,3.72166243,135.7,135.64,3.67467361]
[1767811118836,3.72166243,135.7,135.61,3.67467361]
[1767811119237,10.35976243,135.7,135.63,6.6414]
[1767811122750,10.36036243,135.69,135.61,10.31667361]
[1767811122950,3.72166243,135.68,135.61,10.31667361]
[1767811124652,10.36076243,135.68,135.61,10.31667361]
[1767811129262,6.6397,135.67,135.61,3.67467361]
[1767811130760,3.72166243,135.66,135.57,3.67467361]
[1767811131557,6.641,135.64,135.57,10.31907361]
[1767811132958,10.36216243,135.66,135.59,3.67467361]
[1767811133463,10.36216243,135.66,135.6,3.67467361]
[1767811133658,6.6394,135.68,135.6,3.67467361]
[1767811133867,3.72166243,135.68,135.6,3.67467361]
[1767811135159,6.6401,135.66,135.6,3.67467361]
[1767811136563,3.72166243,135.68,135.62,3.67467361]
[1767811137566,3.72166243,135.7,135.63,3.67467361]
[1767811138064,6.6386,135.69,135.63,3.67467361]
[1767811139365,6.6386,135.69,135.63,10.31607361]
[1767811142969,10.58484025,135.68,135.61,10.55575878]
[1767811148668,10.35424667,135.67,135.61,3.91375878]
[1767811149072,3.71464667,135.67,135.61,3.91375878]
[1767811149268,3.71464667,135.67,135.59,19.70588757]
[1767811150680,6.6401,135.66,135.59,19.70588757]
[1767811151183,6.6395,135.68,135.62,3.90795397]
[1767811151381,10.35414667,135.68,135.62,3.90795397]
[1767811152879,6.6395,135.68,135.63,3.90795397]
[1767811156579,10.35414667,135.68,135.63,3.90795397]
[1767811158881,6.6386,135.69,135.63,3.90795397]
[1767811159082,3.71464667,135.74,135.65,3.90795397]
[1767811159287,3.71464667,135.73,135.65,3.90795397]
[1767811160691,6.6373,135.72,135.66,6.64]
[1767811162988,10.35194667,135.72,135.65,3.90795397]
[1767811163193,10.35224667,135.71,135.65,10.54845397]
[1767811168799,10.35224667,135.71,135.66,3.90795397]
[1767811169000,6.6371,135.73,135.66,12.71626996]
[1767811169199,6.6371,135.73,135.67,3.90795397]
[1767811169400,3.71464667,135.74,135.67,3.90795397]
[1767811169594,3.71464667,135.74,135.68,6.07636996]
[1767811170195,97.49054667,135.75,135.69,10.54645397]
[1767811170795,97.49054667,135.75,135.69,3.90795397]
[1767811171200,3.71464667,135.78,135.7,10.54605397]
[1767811171399,3.71464667,135.77,135.7,3.90795397]
[1767811171705,3.71464667,135.77,135.68,3.90795397]
[1767811172617,6.6361,135.74,135.68,10.54655397]
[1767811180321,10.64956648,135.74,135.68,10.54655397]
[1767811180615,10.65006648,135.73,135.68,3.90795397]
[1767811186716,10.64946648,135.75,135.68,3.90795397]
[1767811186921,10.64946648,135.75,135.68,6.07636996]
[1767811187614,10.64946648,135.75,135.7,3.65731829]
[1767811187814,10.64856648,135.77,135.7,5.82573428]
[1767811188018,10.64856648,135.77,135.71,3.65731829]
[1767811189719,10.64856648,135.77,135.71,10.29481829]
[1767811190118,6.634,135.79,135.73,10.29391829]
[1767811192322,6.634,135.79,135.74,3.65731829]
[1767811194421,4.01346648,135.78,135.72,2.16841599]
[1767811194721,4.01346648,135.77,135.71,3.65731829]
[1767811194922,4.01346648,135.77,135.69,5.82573428]
[1767811195121,10.64866648,135.76,135.69,12.46413428]
[1767811196327,10.64866648,135.76,135.69,10.29571829]
[1767811196522,10.64926648,135.75,135.69,10.29571829]
[1767811197521,4.01346648,135.75,135.7,10.29531829]
[1767811197823,10.64846648,135.77,135.7,10.29531829]
[1767811198717,4.01346648,135.77,135.71,3.65731829]
[1767811199028,4.01346648,135.79,135.72,3.65731829]
[1767811199424,10.64716648,135.79,135.73,8.80481599]
[1767811201230,4.01346648,135.79,135.74,6.636]
[1767811201621,3.72799479,135.82,135.75,2.16841599]
[1767811202023,3.72799479,135.82,135.75,5.96585622]
[1767811202527,6.6327,135.81,135.75,12.60125622]
[1767811203419,6.6322,135.83,135.76,6.6349]
[1767811203624,91.01175458,135.85,135.77,5.96585622]
[1767811203930,3.93175458,135.85,135.78,3.79744023]
[1767811206532,6.6313,135.84,135.78,3.79744023]
[1767811206925,3.93175458,135.84,135.76,3.79744023]
[1767811207133,10.56395458,135.82,135.74,3.79744023]
[1767811207532,3.93175458,135.77,135.69,12.95237383]
[1767811207730,3.93175458,135.77,135.69,3.79744023]
[1767811208329,3.93175458,135.77,135.7,3.79744023]
[1767811208734,3.93175458,135.8,135.71,12.60335622]
[1767811208937,3.93175458,135.8,135.72,3.79744023]
[1767811210326,2.16841599,135.77,135.69,3.79744023]
[1767811210530,6.10017057,135.77,135.69,3.79744023]
[1767811211526,6.6353,135.76,135.69,10.43594023]
[1767811212132,6.6357,135.75,135.69,3.79744023]
[1767811217040,6.10017057,135.77,135.69,3.79744023]
[1767811217041,3.93175458,135.76,135.69,3.79744023]
[1767811217633,3.93175458,135.8,135.73,2.16841599]
[1767811217839,3.93175458,135.8,135.73,5.96585622]
[1767811218035,3.93175458,135.8,135.74,6.636]
[1767811218937,12.73227057,135.83,135.75,6.6356]
[1767811219131,10.56385458,135.83,135.75,12.60145622]
[1767811219337,3.93175458,135.83,135.75,12.60145622]
[1767811220228,3.93175458,135.83,135.76,6.6351]
[1767811221736,10.56355458,135.83,135.76,6.6351]
[1767811222335,10.56355458,135.83,135.76,10.43254023]
[1767811224044,6.6322,135.82,135.76,3.79744023]
[1767811224344,10.56395458,135.82,135.76,3.79744023]
[1767811226847,3.93175458,135.81,135.74,10.43314023]
[1767811227234,10.56455458,135.81,135.74,10.43314023]
[1767811230351,10.56495458,135.8,135.74,3.79744023]
[1767811233053,3.79122996,135.83,135.75,3.92205598]
[1767811233241,3.79122996,135.83,135.76,3.92205598]
[1767811233840,10.42302996,135.83,135.76,3.92205598]
[1767811234552,10.42302996,135.83,135.76,10.55695598]
[1767811235456,10.42302996,135.83,135.77,10.55665598]
[1767811237048,10.42242996,135.85,135.78,6.6341]
[1767811237242,10.42242996,135.85,135.78,10.55615598]
[1767811240249,3.79122996,135.85,135.78,3.92205598]
[1767811241760,6.6312,135.84,135.78,3.92205598]
[1767811244557,10.42202996,135.85,135.78,10.55615598]
[1767811246156,6.6314,135.84,135.78,3.92205598]
[1767811246355,10.42262996,135.84,135.78,3.92205598]
[1767811247465,6.6318,135.83,135.78,3.92205598]
[1767811247863,10.42302996,135.83,135.77,3.92205598]
[1767811249566,10.42302996,135.83,135.77,10.55655598]
[1767811249868,10.42222996,135.85,135.77,3.92205598]
[1767811250669,3.79122996,135.84,135.77,3.92205598]
[1767811251667,6.6317,135.83,135.77,10.55665598]
[1767811252265,6.6322,135.82,135.77,3.92205598]
[1767811252860,3.79122996,135.83,135.77,3.92205598]
[1767811253262,10.42292996,135.83,135.77,10.55665598]
[1767811254371,10.42292996,135.83,135.77,3.92205598]
[1767811256272,6.6322,135.82,135.77,3.92205598]
[1767811256572,3.79122996,135.83,135.77,3.92205598]
[1767811257573,10.42292996,135.83,135.77,3.92205598]
[1767811262886,3.79122996,135.83,135.77,10.55665598]
[1767811263886,3.963193,135.82,135.75,100.03886307]
[1767811264686,10.595893,135.81,135.75,100.03886307]
[1767811265076,3.963193,135.8,135.73,12.99886307]
[1767811265276,10.596893,135.8,135.73,19.63546307]
[1767811266790,10.596893,135.8,135.74,3.84392947]
[1767811268185,3.963193,135.79,135.73,15.7915336]
[1767811268389,3.963193,135.78,135.73,6.6366]
[1767811268589,3.963193,135.8,135.73,10.48052947]
[1767811268895,10.596393,135.8,135.73,10.48052947]
[1767811269392,10.596393,135.8,135.73,19.63546307]
[1767811269792,10.596393,135.8,135.73,10.48052947]
[1767811270087,3.963193,135.8,135.74,6.6359]
[1767811270291,3.963193,135.82,135.75,3.84392947]
[1767811270484,3.963193,135.82,135.75,12.99886307]
[1767811271087,3.963193,135.82,135.75,19.63446307]
[1767811271288,3.963193,135.82,135.76,3.84392947]
[1767811272191,3.963193,135.82,135.76,12.99886307]
[1767811272691,6.6317,135.83,135.77,3.84392947]
[1767811273186,10.594893,135.83,135.77,3.84392947]
[1767811273692,10.594893,135.83,135.77,10.47852947]
[1767811274790,3.963193,135.82,135.75,12.99886307]
[1767811276381,3.963193,135.82,135.76,3.84392947]
[1767811276583,3.963193,135.82,135.76,10.47902947]
[1767811278093,3.963193,135.82,135.76,3.84392947]
[1767811279295,10.595393,135.82,135.76,3.84392947]
[1767811282495,3.963193,135.8,135.75,3.84392947]
[1767811282694,3.963193,135.8,135.74,9.1549336]
[1767811282996,3.963193,135.8,135.73,17.54211105]
[1767811282997,3.963193,135.8,135.73,12.99886307]
[1767811283696,6.6337,135.79,135.73,12.99886307]
[1767811284301,3.963193,135.8,135.73,19.63536307]
[1767811285701,3.963193,135.8,135.75,6.6356]
[1767811285902,3.963193,135.8,135.73,12.99886307]
[1767811287691,3.963193,135.78,135.73,9.1549336]
[1767811287897,3.963193,135.77,135.7,9.1549336]
[1767811288205,6.12886418,135.76,135.69,90.90392947]
[1767811288397,10.598993,135.75,135.69,3.84392947]
[1767811288797,3.963193,135.73,135.67,53.08944971]
[1767811289098,5.71192401,135.72,135.66,3.84392947]
[1767811289301,3.963193,135.73,135.67,3.84392947]
[1767811289605,5.70623145,135.72,135.67,3.84392947]
[1767811289801,3.963193,135.73,135.67,3.84392947]
[1767811290198,10.598893,135.75,135.68,3.84392947]
[1767811290399,3.963193,135.75,135.69,3.84392947]
[1767811290705,10.598193,135.77,135.69,3.84392947]
[1767811291701,10.598193,135.77,135.69,10.48232947]
[1767811292303,3.963193,135.77,135.7,3.90022633]
[1767811295609,10.597993,135.77,135.7,3.90022633]
[1767811297619,3.97607025,135.8,135.72,6.06589751]
[1767811298705,3.97607025,135.79,135.72,12.70279751]
[1767811300318,10.61027025,135.78,135.72,3.90022633]
[1767811301810,3.97607025,135.78,135.72,3.90022633]
[1767811302014,10.60967025,135.8,135.73,3.90022633]
[1767811302215,3.97607025,135.79,135.73,3.90022633]
[1767811302911,3.97607025,135.78,135.71,3.90022633]
[1767811303310,3.97607025,135.78,135.72,2.16567118]
[1767811303619,3.97607025,135.78,135.72,6.06589751]
[1767811304414,10.61027025,135.78,135.72,6.06589751]
[1767811304916,10.61097025,135.77,135.7,3.90022633]
[1767811305124,10.61097025,135.77,135.7,6.06589751]
[1767811307523,10.61127025,135.76,135.7,6.06589751]
[1767811308530,3.97607025,135.76,135.7,6.06589751]
[1767811308708,3.97607025,135.76,135.71,3.90022633]
[1767811310624,10.61127025,135.76,135.71,3.90022633]
[1767811311420,10.61067025,135.78,135.71,10.53772633]
[1767811312210,3.97607025,135.77,135.71,10.53772633]
[1767811315424,3.97607025,135.77,135.72,3.90022633]
[1767811315724,3.97607025,135.77,135.72,6.06589751]
[1767811315923,3.97607025,135.79,135.72,12.70289751]
[1767811317123,10.61017025,135.79,135.72,12.70289751]
[1767811318226,6.6332,135.8,135.74,3.90022633]
[1767811318814,10.60927025,135.8,135.74,6.06589751]
[1767811319220,6.6338,135.79,135.74,6.06589751]
[1767811320724,3.97607025,135.8,135.74,12.70199751]
[1767811320929,3.97607025,135.82,135.76,2.16567118]
[1767811321316,6.6327,135.81,135.76,2.16567118]
[1767811322029,6.6327,135.81,135.76,6.14903899]
[1767811322231,6.6327,135.81,135.76,3.98336781]
[1767811322428,6.6327,135.81,135.76,6.14903899]
[1767811325247,6.6321,135.83,135.77,3.98336781]
[1767811325632,10.26579034,135.83,135.77,3.98336781]
[1767811330831,3.63369034,135.81,135.74,6.14903899]
[1767811332639,10.26639034,135.81,135.74,12.78513899]
[1767811335047,3.63369034,135.8,135.74,12.78513899]
[1767811335246,3.63369034,135.79,135.74,12.78513899]
[1767811337854,3.63369034,135.79,135.74,3.98336781]
[1767811338245,10.26739034,135.79,135.73,95.88227118]
[1767811338448,10.26739034,135.79,135.73,89.24567118]
[1767811338959,10.26739034,135.79,135.73,93.22903899]
[1767811339456,10.26739034,135.79,135.73,91.06336781]
[1767811341352,10.26739034,135.79,135.73,97.69976781]
[1767811354372,10.26739034,135.79,135.73,91.06336781]
[1767811354572,10.26739034,135.79,135.74,3.70430888]
[1767811360672,6.6342,135.78,135.74,3.70430888]
[1767811363473,10.26739034,135.79,135.74,3.70430888]
[1767811364278,6.6342,135.78,135.74,3.70430888]
[1767811364883,10.55308769,135.78,135.72,10.34130888]
[1767811365280,3.91888769,135.78,135.72,3.70430888]
[1767811366173,3.91888769,135.76,135.7,99.91924248]
[1767811366472,3.91888769,135.76,135.7,90.76430888]
[1767811366876,3.91888769,135.76,135.7,3.70430888]
[1767811367077,3.91888769,135.76,135.7,10.34220888]
[1767811371771,3.91888769,135.75,135.68,9.1549336]
[1767811371971,3.91888769,135.75,135.66,12.85924248]
[1767811372178,3.91888769,135.75,135.66,3.70430888]
[1767811372377,3.91888769,135.73,135.66,3.70430888]
[1767811373072,3.91888769,135.72,135.66,3.70430888]
[1767811373982,10.55598769,135.72,135.66,3.70430888]
[1767811374483,10.55598769,135.72,135.64,3.70430888]
[1767811374484,3.91888769,135.71,135.64,3.70430888]
[1767811374682,10.55658769,135.71,135.64,3.70430888]
[1767811375279,3.91888769,135.66,135.58,3.70430888]
[1767811375872,6.6395,135.68,135.6,3.70430888]
[1767811376072,3.91888769,135.69,135.6,3.70430888]
[1767811376277,90.99888769,135.71,135.61,3.70430888]
[1767811376477,3.91888769,135.7,135.61,3.70430888]
[1767811377479,3.91888769,135.67,135.59,3.70430888]
[1767811378988,3.91888769,135.66,135.59,3.70430888]
[1767811380594,10.55928769,135.66,135.59,3.70430888]
[1767811382679,3.83227529,135.65,135.59,3.70430888]
[1767811383280,3.83227529,135.65,135.55,55.98355773]
[1767811383281,3.83227529,135.63,135.55,55.98355773]
[1767811383475,3.83227529,135.63,135.55,52.59934088]
[1767811383677,6.6427,135.61,135.53,3.92641701]
[1767811383877,10.47497529,135.61,135.53,3.92641701]
[1767811384889,90.95227529,135.64,135.54,3.92641701]
[1767811385290,3.83227529,135.63,135.54,3.92641701]
[1767811385987,3.83227529,135.63,135.52,3.92641701]
[1767811386491,10.47507529,135.61,135.53,3.92641701]
[1767811387093,3.83227529,135.6,135.53,3.92641701]
[1767811388393,3.83227529,135.59,135.53,3.92641701]
[1767811395600,6.6424,135.62,135.54,3.92641701]
[1767811395803,10.47467529,135.62,135.54,3.92641701]
[1767811396700,3.83227529,135.61,135.54,3.92641701]
[1767811396901,3.83227529,135.6,135.54,3.92641701]
[1767811397900,3.83227529,135.6,135.54,10.57231701]
[1767811398106,3.83227529,135.62,135.55,3.92641701]
[1767811399700,3.83227529,135.62,135.56,6.6447]
[1767811402215,3.83227529,135.62,135.55,3.92641701]
[1767811402916,3.83227529,135.62,135.55,10.57171701]
[1767811404220,3.83227529,135.62,135.56,3.92641701]
[1767811404418,10.47427529,135.62,135.56,3.92641701]
[1767811405619,3.83227529,135.61,135.55,6.6453]
[1767811406013,3.83227529,135.61,135.54,3.92641701]
[1767811407216,3.83227529,135.61,135.51,3.92641701]
[1767811407607,6.6435,135.59,135.52,10.57321701]
[1767811408112,10.47577529,135.59,135.52,10.57321701]
[1767811409209,10.47577529,135.59,135.53,3.92641701]
[1767811410014,10.47577529,135.59,135.53,10.57281701]
[1767811412716,10.64622793,135.58,135.53,3.92641701]
[1767811414815,4.00232793,135.61,135.54,3.93605969]
[1767811415314,10.64532793,135.6,135.54,10.58185969]
[1767811415618,4.00232793,135.59,135.52,3.93605969]
[1767811415920,10.64582793,135.59,135.52,10.58285969]
[1767811418516,10.64582793,135.59,135.53,3.93605969]
[1767811418721,10.64582793,135.59,135.53,10.58245969]
[1767811418921,10.64532793,135.61,135.54,3.93605969]
[1767811419122,5.5684157,135.6,135.54,3.93605969]
[1767811419321,10.64532793,135.61,135.54,3.93605969]
[1767811419515,5.57298896,135.6,135.54,3.93605969]
[1767811419713,10.64532793,135.61,135.54,3.93605969]
[1767811420021,5.57298896,135.6,135.54,3.93605969]
[1767811420218,5.57298896,135.59,135.54,3.93605969]
[1767811420526,10.64532793,135.61,135.54,12.75419496]
[1767811420725,12.22118055,135.6,135.54,10.58185969]
[1767811420926,5.57818055,135.59,135.54,10.58185969]
[1767811421123,6.643,135.6,135.54,10.58185969]
[1767811423323,4.00232793,135.59,135.54,3.93605969]
[1767811423522,10.64592793,135.59,135.52,3.93605969]
[1767811424216,10.64592793,135.59,135.52,13.09099329]
[1767811424624,10.64592793,135.59,135.52,19.73789329]
[1767811425326,10.64632793,135.58,135.52,13.09099329]
[1767811426325,4.00232793,135.56,135.5,9.1549336]
[1767811426621,4.00232793,135.56,135.49,13.09099329]
[1767811427622,10.64772793,135.55,135.49,13.09099329]
[1767811428018,4.00232793,135.54,135.49,6.35913607]
[1767811428221,4.00232793,135.54,135.48,3.93605969]
[1767811429629,4.00232793,135.54,135.48,10.58485969]
[1767811430727,4.00232793,135.56,135.49,10.58435969]
[1767811432626,10.64732793,135.56,135.49,10.58435969]
[1767811432831,10.64732793,135.56,135.5,3.93605969]
[1767811433831,10.64732793,135.56,135.5,10.58385969]
[1767811434032,4.00232793,135.56,135.51,3.93605969]
[1767811435834,6.6445,135.57,135.51,10.58345969]
[1767811436733,6.6445,135.57,135.52,3.93605969]
[1767811441339,4.00232793,135.58,135.52,3.93605969]
[1767811443137,10.64632793,135.58,135.52,3.93605969]
[1767811448243,10.64632793,135.58,135.52,10.58275969]
[1767811448543,4.00232793,135.58,135.52,10.58275969]
[1767811448939,4.00232793,135.58,135.53,3.80671956]
[1767811451241,10.64632793,135.58,135.53,3.80671956]
[1767811462344,2.17233527,135.6,135.51,18.01856563]
[1767811462345,3.90980207,135.56,135.51,9.19893036]
[1767811462646,3.90980207,135.56,135.49,15.17798519]
[1767811462852,3.90980207,135.56,135.5,3.80671956]
[1767811463449,10.55470207,135.56,135.5,3.80671956]
[1767811464251,3.90980207,135.54,135.48,13.00564992]
[1767811464545,3.90980207,135.54,135.48,3.80671956]
[1767811466445,3.90980207,135.54,135.47,15.84783036]
[1767811466649,3.90980207,135.53,135.47,3.80671956]
[1767811467547,10.55630207,135.53,135.47,3.80671956]
[1767811468443,3.90980207,135.53,135.47,3.80671956]
[1767811469242,10.55660207,135.53,135.47,3.80671956]
[1767811469856,3.90980207,135.52,135.45,98.57126563]
[1767811470056,3.90980207,135.52,135.46,3.80671956]
[1767811471256,3.90980207,135.51,135.45,87.2]
[1767811471465,3.90980207,135.51,135.44,14.29006713]
[1767811471951,3.90980207,135.51,135.45,3.84689132]
[1767811472347,5.86107826,135.54,135.45,3.84689132]
[1767811472546,5.86107826,135.54,135.44,10.48334757]
[1767811472547,3.68874299,135.53,135.46,3.84689132]
[1767811474757,3.68874299,135.52,135.46,10.49669132]
[1767811476357,3.68874299,135.52,135.46,3.84689132]
[1767811476550,3.68874299,135.55,135.46,3.84689132]
[1767811477554,3.68874299,135.53,135.47,6.6493]
[1767811478152,3.68874299,135.53,135.47,10.49619132]
[1767811479560,10.33514299,135.53,135.47,10.49619132]
[1767811480060,3.68874299,135.52,135.47,10.49619132]
[1767811482259,3.68874299,135.52,135.47,3.84689132]
[1767811483365,6.6464,135.53,135.47,3.84689132]
[1767811484562,103.3764,135.55,135.45,13.04582168]
[1767811484765,3.68874299,135.51,135.44,97.70334757]
[1767811484967,3.68874299,135.51,135.44,87.22]
[1767811485161,3.68874299,135.51,135.43,3.84689132]
[1767811485363,10.33714299,135.49,135.43,3.84689132]
[1767811491773,3.68874299,135.49,135.43,3.84689132]
[1767811492976,10.33754299,135.49,135.43,3.84689132]
[1767811493980,3.68874299,135.48,135.43,3.84689132]
[1767811500985,3.68874299,135.47,135.41,10.49909132]
[1767811502086,3.68874299,135.47,135.42,10.43207446]
[1767811502278,3.72862722,135.49,135.42,3.78027446]
[1767811503577,3.72862722,135.49,135.43,6.6512]
[1767811503981,3.72862722,135.49,135.42,3.78027446]
[1767811504179,10.37792722,135.47,135.41,6.6518]
[1767811504387,10.37792722,135.47,135.4,3.78027446]
[1767811505683,10.37792722,135.47,135.41,10.43257446]
[1767811508386,3.72862722,135.47,135.42,10.43197446]
[1767811508885,3.72862722,135.47,135.42,3.78027446]
[1767811510187,10.37792722,135.47,135.4,10.43297446]
[1767811510386,3.72862722,135.46,135.38,12.97920482]
[1767811510574,3.72862722,135.46,135.39,3.78027446]
[1767811511380,3.72862722,135.45,135.39,10.43347446]
[1767811511576,3.72862722,135.48,135.39,3.78027446]
[1767811511782,3.72862722,135.46,135.39,3.78027446]
[1767811512879,3.72862722,135.46,135.4,10.43277446]
[1767811513379,3.72862722,135.46,135.41,10.43247446]
[1767811513588,10.37752722,135.48,135.41,10.43247446]
[1767811513778,3.72862722,135.48,135.41,3.78027446]
[1767811513979,13.2921,135.54,135.38,116.09687426]
[1767811513980,10.37692722,135.5,135.43,3.78027446]
[1767811514180,3.72862722,135.49,135.41,91.04027446]
[1767811514473,3.72862722,135.49,135.42,3.78027446]
[1767811514887,10.37742722,135.48,135.42,10.43197446]
[1767811515088,3.72862722,135.48,135.41,87.26]
[1767811515385,3.72862722,135.48,135.4,3.78027446]
[1767811516576,10.37802722,135.47,135.4,10.43297446]
[1767811517187,3.72862722,135.46,135.4,10.43297446]
[1767811517489,10.37842722,135.46,135.4,3.78027446]
[1767811517989,3.72862722,135.45,135.4,3.78027446]
[1767811519185,3.72862722,135.44,135.38,91.04027446]
[1767811519388,3.72862722,135.44,135.37,3.78027446]
[1767811520291,3.72862722,135.44,135.37,10.43447446]
[1767811520492,3.72862722,135.44,135.38,3.78027446]
[1767811521793,10.37952722,135.44,135.38,3.78027446]
[1767811522385,103.4455,135.46,135.35,96.47893036]
[1767811522588,3.72862722,135.41,135.33,14.26466581]
[1767811522786,3.72862722,135.41,135.34,3.78027446]
[1767811523787,3.72862722,135.41,135.33,1.28546099]
[1767811523987,3.72862722,135.41,135.32,3.78027446]
[1767811524395,3.72862722,135.4,135.33,3.78027446]
[1767811525190,3.72862722,135.39,135.3,9.19893036]
[1767811525385,3.72862722,135.39,135.29,3.78027446]
[1767811525696,10.38222722,135.39,135.3,6.6575]
[1767811525992,107.12112722,135.53,135.4,3.78027446]
[1767811526185,3.72862722,135.49,135.41,94.45761836]
[1767811526391,3.72862722,135.49,135.39,12.97920482]
[1767811526689,3.72862722,135.49,135.39,3.78027446]
[1767811526894,3.72862722,135.48,135.38,87.28]
[1767811527088,3.72862722,135.48,135.39,6.88386782]
[1767811527390,3.72862722,135.47,135.37,6.88386782]
[1767811528291,3.72862722,135.45,135.37,6.88386782]
[1767811528490,3.72862722,135.45,135.36,10.66414228]
[1767811530097,3.72862722,135.45,135.37,3.78027446]
[1767811530397,3.72862722,135.44,135.35,10.66414228]
[1767811531292,3.72862722,135.44,135.36,3.78027446]
[1767811531497,3.72862722,135.44,135.37,3.78027446]
[1767811532699,3.72862722,135.44,135.35,10.60557226]
[1767811534691,3.96563262,135.43,135.35,3.72170444]
[1767811534892,3.96563262,135.43,135.35,10.60557226]
[1767811535992,3.96563262,135.45,135.37,3.72170444]
[1767811539702,93.9502,135.46,135.37,3.72170444]
[1767811539703,3.96563262,135.44,135.37,3.72170444]
[1767811540604,100.09307168,135.46,135.38,3.72170444]
[1767811540996,3.96563262,135.46,135.4,3.72170444]
[1767811541400,3.96563262,135.46,135.39,6.88386782]
[1767811542907,3.96563262,135.46,135.38,17.25907226]
[1767811543394,3.96563262,135.46,135.39,6.88386782]
[1767811544306,3.96563262,135.46,135.39,10.60557226]
[1767811546508,3.96563262,135.44,135.38,6.88386782]
[1767811546712,5.72923508,135.43,135.37,10.60557226]
[1767811546908,3.96563262,135.44,135.37,10.60557226]
[1767811547109,5.72898585,135.43,135.37,10.60557226]
[1767811547314,3.96563262,135.44,135.37,10.60557226]
[1767811547500,5.72969827,135.43,135.37,10.60557226]
[1767811547705,10.61663262,135.44,135.37,10.60557226]
[1767811547905,5.729403,135.43,135.37,10.60557226]
[1767811548112,10.61663262,135.44,135.37,10.60557226]
[1767811548412,5.72940109,135.43,135.37,10.60557226]
[1767811548612,3.96563262,135.43,135.37,6.88386782]
[1767811548810,3.96563262,135.43,135.36,6.88386782]
[1767811548811,9.6959169,135.42,135.36,6.88386782]
[1767811549011,3.96563262,135.42,135.36,6.88386782]
[1767811549709,3.96563262,135.41,135.36,6.88386782]
[1767811549914,9.694937,135.4,135.34,6.88386782]
[1767811550114,3.96563262,135.4,135.34,6.88386782]
[1767811550911,12.38255017,135.39,135.33,10.60557226]
[1767811551110,6.6534,135.39,135.33,10.60557226]
[1767811551414,10.61903262,135.39,135.33,10.60557226]
[1767811553718,10.61903262,135.39,135.33,3.72170444]
[1767811557313,3.96563262,135.39,135.33,3.72170444]
[1767811559218,10.61813262,135.41,135.33,3.72170444]
[1767811559420,10.61813262,135.41,135.34,3.72170444]
[1767811560519,10.61733262,135.43,135.35,3.72170444]
[1767811560819,3.96563262,135.46,135.37,3.72170444]
[1767811561726,3.96563262,135.46,135.39,4.00061404]
[1767811562513,3.96563262,135.46,135.39,10.65381404]
[1767811562718,3.96563262,135.46,135.39,17.53768186]
[1767811562916,3.96563262,135.46,135.39,10.88448186]
[1767811563827,10.61553262,135.46,135.39,17.53768186]
[1767811569827,87.32,135.48,135.39,17.53768186]
[1767811569828,93.9691,135.48,135.42,3.84147155]
[1767811570026,97.72112485,135.48,135.42,3.84147155]
[1767811571036,6.6494,135.47,135.42,3.84147155]
[1767811573841,91.07202485,135.48,135.42,3.84147155]
[1767811574630,6.6493,135.47,135.42,3.84147155]
[1767811574835,87.32,135.48,135.43,3.84147155]
[1767811575141,3.75202485,135.49,135.43,3.84147155]
[1767811576039,10.40072485,135.49,135.43,3.84147155]
[1767811576430,3.75202485,135.49,135.43,3.84147155]
[1767811578636,10.40052485,135.49,135.43,3.84147155]
[1767811578837,6.6485,135.49,135.43,3.84147155]
[1767811580537,10.40052485,135.49,135.43,3.84147155]
[1767811580838,10.40052485,135.49,135.4,96.49893036]
[1767811580839,3.75202485,135.48,135.4,3.84147155]
[1767811581538,6.65,135.46,135.4,3.84147155]
[1767811582244,10.40202485,135.46,135.4,3.84147155]
[1767811582538,10.40252485,135.45,135.39,9.06110688]
[1767811582742,10.40252485,135.45,135.39,2.17723906]
[1767811583035,97.68182485,135.47,135.4,3.84147155]
[1767811583242,91.03202485,135.47,135.4,3.84147155]
[1767811584441,6.6504,135.45,135.4,3.84147155]
[1767811585528,3.75202485,135.45,135.39,6.88386782]
[1767811585839,3.75202485,135.45,135.37,6.88386782]
[1767811586040,3.75202485,135.45,135.37,10.72533937]
[1767811586542,6.6513,135.43,135.37,10.72533937]
[1767811589639,3.75202485,135.45,135.39,3.84147155]
[1767811591543,10.40252485,135.45,135.39,3.84147155]
[1767811595747,6.6508,135.44,135.39,3.84147155]
[1767811597549,3.73583781,135.43,135.37,6.88109479]
[1767811597744,3.73583781,135.43,135.35,10.58914554]
[1767811598643,6.6525,135.41,135.35,10.58914554]
[1767811599052,10.38833781,135.41,135.35,10.58914554]
[1767811599555,6.653,135.4,135.35,3.70805075]
[1767811600348,6.653,135.4,135.35,10.58914554]